bitfinex-derivatives/quotes_BNBF0:USTF0_20250807
["timestamp","ask_amount","ask_price","bid_price","bid_amount"]
[1754576356981,0.83002159,774.76,773.76,0.8673965]
[1754576357285,0.83002159,774.75,773.78,0.8673965]
[1754576357480,0.8641276,774.93,773.84,0.8673965]
[1754576357684,0.83013091,774.92,773.84,0.8673965]
[1754576357885,0.83013091,774.91,773.92,0.8673965]
[1754576358087,0.83013091,774.9,773.92,0.8673965]
[1754576358287,0.83013091,774.89,773.91,0.8673965]
[1754576358485,0.83013091,774.88,773.91,0.8673965]
[1754576358686,0.83013091,774.87,773.93,0.8673965]
[1754576358986,1.90913091,774.86,773.92,0.8673965]
[1754576359285,0.83013091,774.85,773.92,0.8673965]
[1754576360588,0.83013091,774.85,773.91,0.8673965]
[1754576361085,0.941,774.84,773.91,0.8673965]
[1754576361283,0.83013091,774.83,773.91,0.8673965]
[1754576361485,0.941,774.84,772.73,0.22490282]
[1754576361486,0.941,774.84,773.9,0.8673965]
[1754576362888,0.82987868,774.83,773.92,0.8673965]
[1754576363087,0.941,774.84,773.93,0.8673965]
[1754576363088,0.82987868,774.82,773.93,0.8673965]
[1754576363285,0.941,774.84,773.93,0.8673965]
[1754576363589,0.941,774.84,773.91,0.8673965]
[1754576363888,0.941,774.84,773.92,0.8673965]
[1754576365785,0.941,774.84,773.93,0.8673965]
[1754576365985,0.941,774.84,773.91,0.8673965]
[1754576366190,0.941,774.84,773.96,0.8673965]
[1754576366489,0.941,774.84,773.98,0.8673965]
[1754576367285,0.941,774.84,773.95,0.8673965]
[1754576367491,0.941,774.84,773.97,0.8673965]
[1754576367791,0.941,774.84,774.08,0.8673965]
[1754576368491,0.941,774.84,774.05,0.8673965]
[1754576370291,0.941,774.84,774.04,0.8673965]
[1754576371289,0.941,774.84,774.03,0.8673965]
[1754576372788,0.941,774.84,774.04,0.8673965]
[1754576373393,0.941,774.84,774.03,0.8673965]
[1754576373591,0.727,774.83,774.03,0.8673965]
[1754576374394,0.727,774.83,774.06,0.8673965]
[1754576374791,0.727,774.83,774.05,0.8673965]
[1754576376297,0.727,774.83,774.07,0.8673965]
[1754576377293,0.727,774.83,774.06,0.8673965]
[1754576378201,0.727,774.83,774.1,0.8673965]
[1754576378396,0.727,774.83,774.09,0.8673965]
[1754576379999,0.727,774.83,774.01,0.8673965]
[1754576380295,0.727,774.83,773.76,1.15042796]
[1754576380296,0.727,774.83,774.0,0.8673965]
[1754576382001,0.727,774.83,773.97,0.8673965]
[1754576382703,0.727,774.83,773.95,0.8673965]
[1754576382900,0.727,774.83,773.99,0.8673965]
[1754576383299,0.727,774.83,773.94,0.8673965]
[1754576384102,0.727,774.83,773.93,0.8673965]
[1754576384598,0.727,774.83,773.94,0.8673965]
[1754576385205,0.727,774.83,773.93,0.8673965]
[1754576385804,0.727,774.83,773.96,0.8673965]
[1754576386504,0.727,774.83,773.99,0.8673965]
[1754576387304,0.727,774.83,774.06,0.8673965]
[1754576387605,0.79,774.82,774.07,0.8673965]
[1754576387802,0.79,774.82,774.05,0.8673965]
[1754576388001,0.79,774.82,774.02,0.8673965]
[1754576388404,0.79,774.82,773.95,0.8673965]
[1754576388599,0.79,774.82,773.94,0.8673965]
[1754576388804,0.79,774.82,773.6,1.72564195]
[1754576388805,0.79,774.82,773.93,0.8673965]
[1754576389002,0.79,774.82,773.92,0.8673965]
[1754576389301,0.79,774.82,773.93,0.8673965]
[1754576389602,0.79,774.82,773.91,0.8673965]
[1754576390205,0.79,774.82,773.85,0.8673965]
[1754576390801,0.79,774.82,773.81,0.8673965]
[1754576391706,0.79,774.82,773.74,0.8673965]
[1754576392407,0.79,774.82,773.75,0.8673965]
[1754576392808,0.79,774.82,773.7,0.8673965]
[1754576393005,0.82639203,774.81,773.7,0.8673965]
[1754576393206,0.82639203,774.8,773.7,0.8673965]
[1754576393409,0.82639203,774.79,773.7,0.8673965]
[1754576393609,0.82639203,774.78,773.7,0.8673965]
[1754576393909,0.82639203,774.77,773.7,0.8673965]
[1754576394110,0.82639203,774.76,773.7,0.8673965]
[1754576394306,0.82639203,774.75,773.7,0.8673965]
[1754576394506,0.82636992,774.74,773.7,0.8673965]
[1754576394704,0.82636992,774.73,773.7,0.8673965]
[1754576394910,0.82636992,774.72,773.72,0.8673965]
[1754576395211,0.82639206,774.71,773.72,0.8673965]
[1754576395411,0.82639206,774.7,773.72,0.8673965]
[1754576395707,0.79,774.82,773.72,0.8673965]
[1754576395911,0.82648143,774.81,773.72,0.8673965]
[1754576396112,0.82648143,774.8,773.72,0.8673965]
[1754576396310,0.82648143,774.79,773.72,0.8673965]
[1754576396508,0.82648143,774.78,773.72,0.8673965]
[1754576396711,0.82648143,774.77,773.72,0.8673965]
[1754576397011,0.82648143,774.76,773.72,0.8673965]
[1754576397207,0.82648143,774.75,773.72,0.8673965]
[1754576397512,0.82648143,774.74,773.67,0.8673965]
[1754576397712,0.82648143,774.73,773.67,0.8673965]
[1754576397909,0.82648143,774.72,773.67,0.8673965]
[1754576398113,0.82648143,774.71,773.67,0.8673965]
[1754576398415,0.82648143,774.7,773.67,0.8673965]
[1754576398615,0.82648143,774.69,773.67,0.8673965]
[1754576398811,0.82648143,774.68,773.67,0.8673965]
[1754576399012,0.82648143,774.67,773.67,0.8673965]
[1754576399210,0.82648143,774.66,773.67,0.8673965]
[1754576399515,0.82648143,774.65,773.69,0.8673965]
[1754576399712,0.82648143,774.64,773.69,0.8673965]
[1754576399911,0.82648143,774.63,773.7,0.8673965]
[1754576400112,0.82648143,774.62,773.69,0.8673965]
[1754576400310,0.82648143,774.61,773.69,0.8673965]
[1754576400516,1.6541276,774.82,773.7,0.8673965]
[1754576400710,0.82671388,774.81,773.7,0.8673965]
[1754576400915,1.6541276,774.82,773.7,0.8673965]
[1754576401112,0.82673398,774.81,773.69,0.8673965]
[1754576401414,0.82673398,774.8,773.69,0.8673965]
[1754576401615,0.82673398,774.79,773.7,0.8673965]
[1754576401816,0.82673398,774.78,773.7,0.8673965]
[1754576402120,0.82673398,774.77,773.71,0.8673965]
[1754576402318,0.82673398,774.76,773.7,0.8673965]
[1754576402518,0.82673398,774.75,773.71,0.8673965]
[1754576402719,0.82673398,774.74,773.71,0.8673965]
[1754576402920,0.82673398,774.73,773.7,0.8673965]
[1754576403120,0.82673398,774.72,773.7,0.8673965]
[1754576403320,0.82673398,774.71,773.71,0.8673965]
[1754576403621,0.82673398,774.7,773.71,0.8673965]
[1754576403924,0.82673398,774.69,773.71,0.8673965]
[1754576404119,0.82673398,774.68,773.72,0.8673965]
[1754576404319,0.82673398,774.67,773.73,0.8673965]
[1754576404521,0.82673398,774.66,773.73,0.8673965]
[1754576404721,0.82673398,774.65,773.73,0.8673965]
[1754576404920,0.82673398,774.64,773.72,0.8673965]
[1754576405125,0.82673398,774.63,773.73,0.8673965]
[1754576405324,0.82673398,774.62,773.73,0.8673965]
[1754576405522,0.8641276,774.82,773.72,0.8673965]
[1754576405824,0.82706913,774.81,773.72,0.8673965]
[1754576406027,0.82706913,774.8,773.72,0.8673965]
[1754576406225,0.82706913,774.79,773.72,0.8673965]
[1754576406529,0.82706913,774.78,773.72,0.8673965]
[1754576406727,0.82706913,774.77,773.72,0.8673965]
[1754576406929,0.82706913,774.76,773.72,0.8673965]
[1754576407228,0.82706913,774.76,773.41,1.72564195]
[1754576407229,0.82706913,774.75,773.73,0.8673965]
[1754576407429,0.82706913,774.74,773.73,0.8673965]
[1754576407629,0.727,774.83,773.75,0.8673965]
[1754576407929,0.82748239,774.82,773.75,0.8673965]
[1754576408131,0.82748239,774.81,773.82,0.8673965]
[1754576408331,0.82748239,774.8,773.82,0.8673965]
[1754576408525,0.82748239,774.79,773.82,0.8673965]
[1754576408729,0.82748239,774.78,773.81,0.8673965]
[1754576408929,0.82748239,774.77,773.81,0.8673965]
[1754576409128,0.82748239,774.81,773.81,0.8673965]
[1754576409331,0.828191,774.8,773.82,0.8673965]
[1754576409531,0.828191,774.79,773.82,0.8673965]
[1754576409730,0.828191,774.78,773.82,0.8673965]
[1754576409933,0.828191,774.77,773.82,0.8673965]
[1754576410129,0.828191,774.76,773.82,0.8673965]
[1754576410333,0.828191,774.75,773.83,0.8673965]
[1754576410633,0.828191,774.74,773.82,0.8673965]
[1754576410933,0.828191,774.73,773.82,0.8673965]
[1754576411133,1.176,774.82,773.82,0.8673965]
[1754576411433,0.82845836,774.81,773.82,0.8673965]
[1754576411633,0.82845836,774.8,773.82,0.8673965]
[1754576411833,0.82845836,774.79,773.82,0.8673965]
[1754576412033,0.82845836,774.78,773.82,0.8673965]
[1754576412233,1.176,774.82,773.22,0.22467195]
[1754576412234,0.82845836,774.77,773.83,0.8673965]
[1754576412434,0.82845836,774.76,773.83,0.8673965]
[1754576412632,0.82845836,774.75,773.83,0.8673965]
[1754576412836,0.82845836,774.74,773.83,0.8673965]
[1754576413135,0.82845836,774.73,773.83,0.8673965]
[1754576413336,0.82845836,774.72,773.83,0.8673965]
[1754576413532,1.176,774.82,773.83,0.8673965]
[1754576413731,0.82924335,774.81,773.83,0.8673965]
[1754576413932,0.82924335,774.8,773.83,0.8673965]
[1754576414131,0.82924335,774.79,773.83,0.8673965]
[1754576414436,0.82924335,774.79,773.66,1.15042796]
[1754576414437,0.82924335,774.79,773.84,0.8673965]
[1754576415036,0.82924335,774.79,773.83,0.8673965]
[1754576415334,0.82924335,774.79,773.85,0.8673965]
[1754576415536,0.82924335,774.79,773.77,0.8673965]
[1754576416433,0.82924335,774.79,773.78,0.8673965]
[1754576417935,0.82924335,774.79,773.75,0.8673965]
[1754576418338,1.137,774.8,773.75,0.8673965]
[1754576418534,0.82963343,774.79,773.75,0.8673965]
[1754576418835,0.82963343,774.78,773.76,0.8673965]
[1754576419040,0.82963343,774.77,773.76,0.8673965]
[1754576419341,0.83077144,774.76,773.76,0.8673965]
[1754576419550,0.83077144,774.75,773.76,0.8673965]
[1754576419840,1.137,774.8,773.76,0.8673965]
[1754576420037,0.83073187,774.79,773.76,0.8673965]
[1754576420349,0.83073187,774.78,773.76,0.8673965]
[1754576420541,0.83073187,774.77,773.76,0.8673965]
[1754576420739,0.83073187,774.76,773.76,0.8673965]
[1754576420941,0.83073187,774.75,773.77,0.8673965]
[1754576421241,1.137,774.8,773.77,0.8673965]
[1754576421438,0.83067805,774.79,773.77,0.8673965]
[1754576421742,0.83067799,774.78,773.74,0.8673965]
[1754576421943,1.137,774.8,773.74,0.8673965]
[1754576422237,0.83067109,774.79,773.74,0.8673965]
[1754576422539,0.83067109,774.78,773.74,0.8673965]
[1754576422838,1.137,774.8,773.74,0.8673965]
[1754576423136,0.83064813,774.79,773.74,0.8673965]
[1754576423339,0.83064813,774.78,773.74,0.8673965]
[1754576423642,1.137,774.8,773.74,0.8673965]
[1754576423844,0.83062331,774.79,773.74,0.8673965]
[1754576424040,0.83062331,774.78,773.74,0.8673965]
[1754576424240,1.137,774.8,773.74,0.8673965]
[1754576424540,0.83063369,774.79,773.75,0.8673965]
[1754576424742,0.83063369,774.78,773.75,0.8673965]
[1754576424943,1.137,774.8,773.75,0.8673965]
[1754576425139,0.83058642,774.79,773.75,0.8673965]
[1754576425444,0.83058642,774.78,773.78,0.8673965]
[1754576425643,1.137,774.8,773.78,0.8673965]
[1754576425644,0.83058642,774.77,773.78,0.8673965]
[1754576425840,0.83058642,774.76,773.78,0.8673965]
[1754576426143,0.83056226,774.75,773.8,0.8673965]
[1754576426343,1.137,774.8,773.8,0.8673965]
[1754576426546,0.8305434,774.79,773.8,0.8673965]
[1754576426744,0.8305434,774.78,773.8,0.8673965]
[1754576426943,0.8305434,774.77,773.8,0.8673965]
[1754576427240,0.8305434,774.76,773.8,0.8673965]
[1754576427545,0.8305434,774.75,773.8,0.8673965]
[1754576427843,1.137,774.8,773.8,0.8673965]
[1754576428041,0.83055421,774.79,773.8,0.8673965]
[1754576428245,0.83055421,774.78,773.8,0.8673965]
[1754576428443,0.83055421,774.77,773.8,0.8673965]
[1754576428641,0.83055421,774.76,773.8,0.8673965]
[1754576428845,0.83055421,774.75,773.8,0.8673965]
[1754576429046,1.137,774.8,773.8,0.8673965]
[1754576429345,0.8305697,774.79,773.81,0.8673965]
[1754576429546,0.8305697,774.78,773.8,0.8673965]
[1754576429841,0.8305697,774.77,773.8,0.8673965]
[1754576430042,0.8305697,774.76,773.8,0.8673965]
[1754576430244,0.8305697,774.75,773.8,0.8673965]
[1754576430445,1.137,774.8,773.81,0.8673965]
[1754576430644,0.83063169,774.79,773.81,0.8673965]
[1754576430844,0.83063169,774.78,773.81,0.8673965]
[1754576431045,0.83063169,774.77,773.81,0.8673965]
[1754576431246,0.83063169,774.76,773.81,0.8673965]
[1754576431445,0.83063169,774.75,773.81,0.8673965]
[1754576431647,0.83063169,774.74,773.88,0.8673965]
[1754576431845,0.83063169,774.73,773.88,0.8673965]
[1754576432156,0.83063169,774.72,773.9,0.8673965]
[1754576432345,0.83063169,774.71,773.9,0.8673965]
[1754576432647,0.83063169,774.7,773.9,0.8673965]
[1754576432844,0.83063169,774.69,773.9,0.8673965]
[1754576433044,0.83063169,774.68,773.9,0.8673965]
[1754576433244,0.8641276,774.77,773.9,0.8673965]
[1754576433449,0.83082981,774.76,773.9,0.8673965]
[1754576433748,0.83082981,774.75,773.9,0.8673965]
[1754576434045,0.83082981,774.74,773.9,0.8673965]
[1754576434346,0.83082981,774.73,773.91,0.8673965]
[1754576434550,0.83082981,774.72,773.9,0.8673965]
[1754576434747,0.83082981,774.71,773.9,0.8673965]
[1754576434949,0.8641276,774.78,773.22,0.22467195]
[1754576434950,0.83082981,774.7,773.89,0.8673965]
[1754576435148,0.83082981,774.69,773.89,0.8673965]
[1754576435349,0.8641276,774.79,773.89,0.8673965]
[1754576435547,0.83134265,774.78,773.89,0.8673965]
[1754576435749,0.83134265,774.77,773.89,0.8673965]
[1754576436049,0.83134265,774.76,773.89,0.8673965]
[1754576436252,0.83134265,774.75,773.89,0.8673965]
[1754576436653,0.8641276,774.78,773.89,0.8673965]
[1754576436853,0.83243965,774.77,773.89,0.8673965]
[1754576437164,0.83243965,774.76,773.89,0.8673965]
[1754576437449,2.0011276,774.8,773.89,0.8673965]
[1754576437450,0.83215353,774.75,773.89,0.8673965]
[1754576437653,0.83215353,774.74,773.89,0.8673965]
[1754576437863,0.83215353,774.73,773.89,0.8673965]
[1754576438153,0.8641276,774.79,773.89,0.8673965]
[1754576438154,0.83215353,774.72,773.89,0.8673965]
[1754576438354,0.83215353,774.71,773.9,0.8673965]
[1754576438554,0.83215353,774.7,773.9,0.8673965]
[1754576438750,0.83215353,774.69,773.9,0.8673965]
[1754576439051,0.8641276,774.78,773.9,0.8673965]
[1754576439250,1.69639101,774.77,773.9,0.8673965]
[1754576439449,0.83226341,774.76,773.9,0.8673965]
[1754576440257,1.69639101,774.76,773.91,0.8673965]
[1754576440450,0.83226341,774.75,773.91,0.8673965]
[1754576441553,1.69639101,774.75,773.92,0.8673965]
[1754576441852,0.83226341,774.74,773.92,0.8673965]
[1754576442357,0.8641276,774.73,773.92,0.8673965]
[1754576442557,0.83226341,774.72,773.92,0.8673965]
[1754576442754,0.83226341,774.72,773.9,0.8673965]
[1754576442954,0.83226341,774.71,773.9,0.8673965]
[1754576443157,0.83226341,774.7,773.9,0.8673965]
[1754576443357,0.8641276,774.76,773.92,0.8673965]
[1754576443557,0.83323884,774.75,773.92,0.8673965]
[1754576443757,0.83323884,774.74,773.92,0.8673965]
[1754576443957,0.83323884,774.74,773.56,1.72564195]
[1754576443958,0.8641276,774.79,773.95,0.8673965]
[1754576444162,0.83332637,774.78,773.97,0.8673965]
[1754576444454,0.83332637,774.77,774.01,0.8673965]
[1754576444654,0.83332637,774.76,774.01,0.8673965]
[1754576444859,1.137,774.8,774.01,0.8673965]
[1754576445159,1.137,774.8,774.06,0.8673965]
[1754576445459,0.83385209,774.79,774.07,0.8673965]
[1754576445655,1.137,774.8,774.07,0.8673965]
[1754576445955,1.137,774.8,773.89,1.15042796]
[1754576445956,1.137,774.8,774.08,0.8673965]
[1754576446455,0.83411693,774.79,774.09,0.8673965]
[1754576446759,1.137,774.8,774.09,0.8673965]
[1754576447060,0.83411691,774.79,774.09,0.8673965]
[1754576447258,1.137,774.8,774.1,0.8673965]
[1754576447455,0.83431346,774.79,774.11,0.8673965]
[1754576447660,0.83431346,774.78,774.11,0.8673965]
[1754576447858,1.137,774.8,774.11,0.8673965]
[1754576448060,0.83431695,774.79,774.11,0.8673965]
[1754576448359,0.83431695,774.79,773.93,1.15042796]
[1754576448360,0.83431695,774.78,774.12,0.8673965]
[1754576448560,0.83431695,774.77,774.11,0.8673965]
[1754576448759,0.83431695,774.76,774.11,0.8673965]
[1754576449061,1.137,774.8,774.11,0.8673965]
[1754576449261,0.83464182,774.79,774.12,0.8673965]
[1754576449562,0.83464182,774.78,774.11,0.8673965]
[1754576449757,0.83464182,774.77,774.11,0.8673965]
[1754576449958,0.83464182,774.76,774.11,0.8673965]
[1754576450159,0.83464182,774.75,774.13,0.8673965]
[1754576450358,0.83464182,774.74,774.13,0.8673965]
[1754576450560,0.83464182,774.73,774.13,0.8673965]
[1754576450758,0.83464182,774.72,774.12,0.8673965]
[1754576450959,0.8641276,774.77,774.12,0.8673965]
[1754576451171,0.83504979,774.76,774.12,0.8673965]
[1754576451370,0.83504979,774.75,774.12,0.8673965]
[1754576451561,0.83504979,774.74,774.13,0.8673965]
[1754576451862,0.83504979,774.73,774.13,0.8673965]
[1754576452062,0.83504979,774.72,774.12,0.8673965]
[1754576452265,0.8641276,774.77,774.12,0.8673965]
[1754576452463,0.8351208,774.76,774.12,0.8673965]
[1754576452664,0.8351208,774.75,774.12,0.8673965]
[1754576452863,0.8351208,774.74,774.12,0.8673965]
[1754576453162,0.8351208,774.73,774.12,0.8673965]
[1754576453366,0.8351208,774.72,774.12,0.8673965]
[1754576453667,0.8641276,774.78,774.12,0.8673965]
[1754576453868,0.8641276,774.76,774.1,0.8673965]
[1754576454166,1.69915357,774.75,774.09,0.8673965]
[1754576454363,0.83502597,774.74,774.09,0.8673965]
[1754576454567,0.83502597,774.73,774.09,0.8673965]
[1754576454768,0.8641276,774.77,774.08,0.8673965]
[1754576455068,0.83490409,774.76,774.07,0.8673965]
[1754576455275,0.83490409,774.75,774.07,0.8673965]
[1754576455563,0.83490409,774.74,774.07,0.8673965]
[1754576455765,0.83490409,774.73,774.07,0.8673965]
[1754576455969,0.83490409,774.72,774.06,0.8673965]
[1754576456266,0.83490409,774.71,774.06,0.8673965]
[1754576456468,0.83490409,774.7,774.06,0.8673965]
[1754576456763,0.83490409,774.69,774.06,0.8673965]
[1754576456967,1.7891276,774.76,774.06,0.8673965]
[1754576457165,0.83451206,774.75,774.07,0.8673965]
[1754576457468,0.83451206,774.74,774.07,0.8673965]
[1754576457674,0.83451206,774.73,774.07,0.8673965]
[1754576457868,0.83451206,774.72,774.07,0.8673965]
[1754576458065,0.83451206,774.71,774.07,0.8673965]
[1754576458265,0.83451206,774.7,774.07,0.8673965]
[1754576458466,0.83451206,774.69,774.04,0.8673965]
[1754576458665,0.8641276,774.67,773.98,0.8673965]
[1754576458868,0.83451206,774.66,773.97,0.8673965]
[1754576459165,0.83451206,774.65,773.98,0.8673965]
[1754576459366,0.83451206,774.64,773.98,0.8673965]
[1754576459567,0.83451206,774.63,773.98,0.8673965]
[1754576459768,0.83451206,774.62,773.98,0.8673965]
[1754576460070,0.83451206,774.61,773.97,0.8673965]
[1754576460369,0.8641276,774.68,773.99,0.8673965]
[1754576460669,0.83453692,774.67,773.98,0.8673965]
[1754576460965,0.83453692,774.66,773.98,0.8673965]
[1754576461166,0.83453692,774.65,773.98,0.8673965]
[1754576461769,0.83453692,774.65,773.99,0.8673965]
[1754576462068,0.83453692,774.65,773.98,0.8673965]
[1754576462470,0.83453692,774.65,773.99,0.8673965]
[1754576462967,0.8641276,774.59,773.92,0.8673965]
[1754576463172,0.8641276,774.58,773.92,0.8673965]
[1754576463367,0.83454596,774.57,773.92,0.8673965]
[1754576463570,0.8641276,774.58,773.92,0.8673965]
[1754576463571,0.83459514,774.56,773.92,0.8673965]
[1754576463865,0.83459514,774.55,773.92,0.8673965]
[1754576464069,0.8641276,774.6,773.91,0.8673965]
[1754576464267,0.83459578,774.59,773.91,0.8673965]
[1754576464571,0.83459578,774.58,773.91,0.8673965]
[1754576464768,0.83459578,774.57,773.91,0.8673965]
[1754576465072,0.83459578,774.56,773.91,0.8673965]
[1754576465372,0.83459578,774.55,773.91,0.8673965]
[1754576465569,0.83459578,774.54,773.91,0.8673965]
[1754576465772,0.83459578,774.53,773.91,0.8673965]
[1754576465976,0.83459578,774.52,773.91,0.8673965]
[1754576466276,0.8641276,774.59,773.9,0.8673965]
[1754576466480,0.83458879,774.58,773.9,0.8673965]
[1754576466780,0.83458879,774.57,773.9,0.8673965]
[1754576466981,0.83458879,774.56,773.88,0.8673965]
[1754576467280,0.83458879,774.55,773.87,0.8673965]
[1754576467477,0.83458879,774.54,773.87,0.8673965]
[1754576467681,0.83458879,774.53,773.87,0.8673965]
[1754576467881,0.83458879,774.52,773.87,0.8673965]
[1754576468078,0.83458879,774.51,773.87,0.8673965]
[1754576468377,0.83458879,774.5,773.87,0.8673965]
[1754576468582,0.8641276,774.57,773.87,0.8673965]
[1754576468776,0.83438412,774.56,773.87,0.8673965]
[1754576468976,0.83438412,774.55,773.87,0.8673965]
[1754576469177,0.83438412,774.54,773.87,0.8673965]
[1754576469486,0.83438412,774.53,773.87,0.8673965]
[1754576469780,0.83438412,774.52,773.87,0.8673965]
[1754576469976,0.83438412,774.51,773.86,0.8673965]
[1754576470178,0.8641276,774.58,773.86,0.8673965]
[1754576470377,0.83419444,774.57,773.86,0.8673965]
[1754576470578,0.83419444,774.56,773.86,0.8673965]
[1754576470780,0.83419444,774.55,773.86,0.8673965]
[1754576470980,0.83419444,774.54,773.86,0.8673965]
[1754576471179,0.83419444,774.53,773.86,0.8673965]
[1754576471380,0.8641276,774.6,773.86,0.8673965]
[1754576471579,0.83413438,774.59,773.86,0.8673965]
[1754576471881,0.83413438,774.58,773.86,0.8673965]
[1754576472078,0.908,774.66,773.22,0.22467195]
[1754576472079,0.83409196,774.57,773.85,0.8673965]
[1754576472280,0.83409196,774.56,773.85,0.8673965]
[1754576472480,0.83409196,774.55,773.85,0.8673965]
[1754576472685,0.83403706,774.54,773.85,0.8673965]
[1754576472879,0.83403706,774.53,773.85,0.8673965]
[1754576473081,0.8641276,774.61,773.85,0.8673965]
[1754576473281,0.83381414,774.6,773.85,0.8673965]
[1754576473484,0.83381414,774.59,773.85,0.8673965]
[1754576473685,0.83381414,774.58,773.85,0.8673965]
[1754576473984,0.83381414,774.57,773.85,0.8673965]
[1754576474179,0.83381414,774.56,773.85,0.8673965]
[1754576474381,0.83381414,774.55,773.85,0.8673965]
[1754576474580,0.83381414,774.54,773.84,0.8673965]
[1754576474780,0.8641276,774.62,773.84,0.8673965]
[1754576474979,0.83371879,774.61,773.84,0.8673965]
[1754576475184,0.83371879,774.6,773.84,0.8673965]
[1754576475481,0.83371879,774.59,773.84,0.8673965]
[1754576475785,0.83371879,774.58,773.84,0.8673965]
[1754576476079,0.83371879,774.57,773.84,0.8673965]
[1754576476287,0.83371879,774.56,773.84,0.8673965]
[1754576476485,0.83371879,774.55,773.84,0.8673965]
[1754576476685,0.83371879,774.54,773.84,0.8673965]
[1754576476883,0.83359246,774.53,773.85,0.8673965]
[1754576477082,0.8641276,774.6,773.85,0.8673965]
[1754576477282,0.83357123,774.59,773.85,0.8673965]
[1754576477585,0.83357123,774.58,773.85,0.8673965]
[1754576477786,0.83357123,774.57,773.84,0.8673965]
[1754576477981,0.8641276,774.64,773.85,0.8673965]
[1754576478282,0.8336282,774.63,773.87,0.8673965]
[1754576478486,0.8336282,774.62,773.9,0.8673965]
[1754576478686,0.8336282,774.61,773.94,0.8673965]
[1754576478893,0.908,774.66,773.94,0.8673965]
[1754576479188,0.83378108,774.65,773.94,0.8673965]
[1754576479387,0.908,774.66,773.94,0.8673965]
[1754576479587,0.8349971,774.65,773.94,0.8673965]
[1754576481083,0.908,774.66,773.94,0.8673965]
[1754576481287,0.8349778,774.65,773.94,0.8673965]
[1754576481484,0.8349778,774.64,773.94,0.8673965]
[1754576481687,0.908,774.66,773.93,0.8673965]
[1754576481885,0.83499956,774.65,773.95,0.8673965]
[1754576482087,0.83499956,774.64,773.97,0.8673965]
[1754576482286,0.908,774.66,773.97,0.8673965]
[1754576482488,0.83497816,774.65,773.97,0.8673965]
[1754576482688,0.83497816,774.64,773.97,0.8673965]
[1754576482889,0.908,774.66,773.97,0.8673965]
[1754576483185,0.83499967,774.65,773.97,0.8673965]
[1754576483391,0.83499967,774.64,773.97,0.8673965]
[1754576483590,0.908,774.66,773.97,0.8673965]
[1754576483788,0.83501627,774.65,773.97,0.8673965]
[1754576484084,0.908,774.66,773.97,0.8673965]
[1754576484686,0.908,774.66,773.98,0.8673965]
[1754576485591,0.908,774.66,773.97,0.8673965]
[1754576485792,0.83501971,774.65,773.95,0.8673965]
[1754576485995,0.908,774.66,773.85,0.8673965]
[1754576486292,0.8641276,774.58,773.82,0.8673965]
[1754576488391,0.8352355,774.57,773.82,0.8673965]
[1754576488692,0.8352355,774.56,773.82,0.8673965]
[1754576488887,0.8352355,774.55,773.82,0.8673965]
[1754576489089,0.8352355,774.54,773.82,0.8673965]
[1754576489288,0.8352355,774.53,773.82,0.8673965]
[1754576489491,0.8352355,774.52,773.82,0.8673965]
[1754576489689,0.8352355,774.51,773.82,0.8673965]
[1754576489889,0.8641276,774.58,773.82,0.8673965]
[1754576490090,0.83510161,774.57,773.82,0.8673965]
[1754576490288,0.83510161,774.56,773.81,0.8673965]
[1754576490487,0.83502134,774.55,773.81,0.8673965]
[1754576490689,0.83502134,774.54,773.81,0.8673965]
[1754576490992,0.83502134,774.53,773.81,0.8673965]
[1754576491188,0.83502134,774.52,773.81,0.8673965]
[1754576491393,0.83502134,774.51,773.81,0.8673965]
[1754576491592,0.8641276,774.58,773.81,0.8673965]
[1754576491791,1.166,774.5,773.81,0.8673965]
[1754576492091,0.83494319,774.49,773.84,0.8673965]
[1754576492289,1.166,774.5,773.81,0.8673965]
[1754576492494,0.83488942,774.49,773.81,0.8673965]
[1754576492690,1.166,774.5,773.81,0.8673965]
[1754576492895,0.83488948,774.49,773.81,0.8673965]
[1754576493095,1.166,774.5,773.81,0.8673965]
[1754576494591,1.166,774.5,773.81,0.86851526]
[1754576494793,0.83475956,774.49,773.81,0.86851526]
[1754576494994,0.83475956,774.48,773.81,0.86851526]
[1754576495193,1.166,774.5,773.81,0.86851526]
[1754576495392,0.83472071,774.49,773.81,0.86851526]
[1754576495597,0.83472071,774.48,773.82,0.86851526]
[1754576495791,1.166,774.5,773.83,0.86851526]
[1754576495996,0.83473292,774.49,773.83,0.86851526]
[1754576496195,1.166,774.5,773.84,0.86851526]
[1754576496196,0.83473292,774.48,773.84,0.86851526]
[1754576496393,1.166,774.5,773.85,0.86851526]
[1754576496595,0.83464687,774.49,773.85,0.86851526]
[1754576496797,0.83464687,774.48,773.84,0.86851526]
[1754576496998,1.166,774.5,773.83,0.86851526]
[1754576497193,1.166,774.5,773.82,0.86851526]
[1754576497494,1.166,774.5,773.81,0.86851526]
[1754576497998,1.161,774.49,773.81,0.86851526]
[1754576498198,1.161,774.49,773.83,0.86851526]